bitfinex/quotes_ETHUSD_20251212
["timestamp","ask_amount","ask_price","bid_price","bid_amount"]
[1765517144703,4.05168683,3235.6,3234.9,0.4723]
[1765517144903,0.75195621,3235.5,3234.9,0.4723]
[1765517145105,3.84271709,3235.5,3234.9,0.4723]
[1765517145611,0.489,3235.4,3234.9,3.56358446]
[1765517146136,0.489,3235.4,3235.0,0.4713]
[1765517146336,3.46789001,3235.7,3235.3,0.4565]
[1765517146519,0.489,3235.6,3235.3,0.4565]
[1765517146831,0.489,3235.6,3235.0,0.4713]
[1765517146832,0.4649,3235.4,3235.0,0.4713]
[1765517147016,0.4649,3235.4,3234.9,0.001]
[1765517147217,0.352,3235.0,3234.9,0.001]
[1765517147433,0.841,3235.0,3234.9,0.001]
[1765517147840,0.489,3235.0,3234.9,0.4575]
[1765517149235,0.489,3235.0,3234.9,0.001]
[1765517149413,4.0450901,3235.0,3234.9,0.001]
[1765517149618,5.11070236,3235.0,3234.9,0.001]
[1765517150834,4.75870236,3235.0,3234.9,0.001]
[1765517153135,5.11070236,3235.0,3234.9,0.001]
[1765517154208,4.75870236,3235.0,3234.9,0.001]
[1765517155546,5.11070236,3235.0,3234.9,0.001]
[1765517159637,10.84777613,3235.0,3234.9,0.001]
[1765517162166,17.16532519,3235.0,3234.9,0.001]
[1765517162469,17.69462086,3235.0,3234.9,0.001]
[1765517163165,5.73147332,3235.0,3234.9,0.001]
[1765517163365,11.95754709,3235.0,3234.9,0.001]
[1765517164143,17.69462086,3235.0,3234.9,0.001]
[1765517165066,4.97396932,3235.0,3234.9,0.001]
[1765517165267,4.75870236,3235.0,3234.9,0.001]
[1765517165480,3.0911901,3235.0,3234.9,0.4575]
[1765517165641,3.0910103,3235.2,3234.9,0.4575]
[1765517165842,5.73707377,3235.6,3235.1,0.4565]
[1765517166069,0.88016305,3235.7,3235.1,0.4565]
[1765517166070,0.49,3235.5,3235.1,0.4565]
[1765517166270,0.49,3235.5,3235.2,0.1895]
[1765517166445,3.58071967,3235.5,3235.2,0.1895]
[1765517166771,0.49,3235.5,3235.2,0.1895]
[1765517167074,3.5807124,3235.5,3235.4,0.4565]
[1765517167256,0.49,3235.5,3235.4,0.4565]
[1765517168074,3.46788373,3235.7,3235.4,0.9278]
[1765517168245,0.49,3235.5,3235.4,0.4713]
[1765517168577,0.49,3235.5,3235.4,0.9278]
[1765517169467,3.68460209,3236.5,3235.4,0.9278]
[1765517169671,0.58047529,3236.0,3235.6,0.4565]
[1765517169848,0.41606147,3235.9,3235.6,0.4565]
[1765517170048,3.09042586,3235.8,3235.6,0.4565]
[1765517170370,3.67090115,3235.8,3235.7,0.4565]
[1765517170576,4.16090115,3235.8,3235.7,0.4565]
[1765517171174,3.58042586,3235.8,3235.7,0.4565]
[1765517171347,3.58042586,3235.8,3235.5,0.4713]
[1765517171672,0.1836,3235.6,3235.1,0.1895]
[1765517172253,3.0907124,3235.5,3235.2,0.4713]
[1765517172776,3.0907124,3235.5,3235.4,0.4565]
[1765517173078,3.09052137,3235.7,3235.4,0.4565]
[1765517173686,3.09052137,3235.7,3235.4,0.9547]
[1765517173983,0.49,3235.8,3235.6,0.4659]
[1765517174278,0.49,3235.8,3235.7,0.4659]
[1765517174579,3.58042586,3235.8,3235.7,0.4659]
[1765517175482,3.58042586,3235.8,3235.7,0.9641]
[1765517175684,3.58042586,3235.8,3235.7,0.4659]
[1765517175882,0.49,3235.8,3235.7,0.4659]
[1765517176083,0.49,3235.8,3235.7,0.9641]
[1765517176579,0.49,3235.9,3235.7,0.9641]
[1765517176751,0.49,3235.9,3235.8,0.9641]
[1765517177174,3.0899744,3236.3,3235.8,0.9641]
[1765517177375,0.49,3236.1,3235.9,0.4982]
[1765517177878,0.489,3236.0,3235.5,0.4982]
[1765517178357,3.57928791,3236.0,3235.9,0.4659]
[1765517178556,3.57928791,3236.0,3235.5,0.4982]
[1765517178783,0.18931436,3236.5,3235.9,0.4659]
[1765517178986,3.08957025,3236.7,3236.0,0.4659]
[1765517179155,0.58047529,3236.6,3236.0,0.4659]
[1765517179357,0.58047529,3236.6,3236.1,0.1119]
[1765517179565,3.08957025,3236.7,3236.5,0.4659]
[1765517179871,0.002,3236.8,3236.6,0.4659]
[1765517180062,0.002,3236.8,3236.7,0.4659]
[1765517180479,0.002,3236.8,3236.7,0.9641]
[1765517182361,0.002,3236.8,3236.7,0.4659]
[1765517182586,0.002,3236.8,3236.7,4.05146653]
[1765517182760,0.002,3236.8,3236.7,4.45661318]
[1765517183490,0.002,3236.8,3236.7,10.19368695]
[1765517183967,0.002,3236.8,3236.7,4.45661318]
[1765517184561,0.002,3236.8,3236.7,0.9619]
[1765517185970,0.002,3236.8,3236.7,4.05146653]
[1765517192096,0.002,3236.8,3236.7,4.54046653]
[1765517193294,0.002,3236.8,3236.7,4.04446653]
[1765517193499,0.002,3236.8,3236.7,4.54046653]
[1765517193699,0.002,3236.8,3236.7,5.30348073]
[1765517195282,0.002,3236.8,3236.7,4.81448073]
[1765517195581,0.002,3236.8,3236.7,5.30348073]
[1765517195783,0.002,3236.8,3236.7,4.81448073]
[1765517195983,0.002,3236.8,3236.7,1.7249142]
[1765517196375,0.002,3236.8,3236.6,3.08964008]
[1765517196376,0.3214,3236.8,3236.6,3.08964008]
[1765517196604,0.3214,3236.8,3236.5,0.489]
[1765517196810,0.3214,3236.8,3236.5,3.57875291]
[1765517196973,0.3214,3236.8,3236.5,0.489]
[1765517197177,0.3214,3236.8,3236.4,3.08981854]
[1765517197377,0.3214,3236.8,3236.4,3.58581854]
[1765517198803,0.002,3236.8,3236.7,0.468]
[1765517200377,0.002,3236.8,3236.5,3.58575358]
[1765517200897,0.002,3236.8,3236.5,0.496]
[1765517202904,0.1334,3236.6,3236.4,3.08981744]
[1765517203083,0.1334,3236.6,3236.3,3.57893117]
[1765517203488,0.002,3236.8,3236.5,0.4595]
[1765517203681,0.002,3236.8,3236.7,0.4595]
[1765517204104,0.002,3236.8,3236.4,0.4678]
[1765517204408,0.3437,3236.8,3236.4,0.4678]
[1765517204907,0.8111,3236.8,3236.3,3.57893117]
[1765517205105,0.4674,3236.7,3236.3,0.489]
[1765517205411,0.4674,3236.7,3236.3,3.57893784]
[1765517206303,0.002,3236.8,3236.3,3.57893784]
[1765517206608,0.4707,3236.8,3236.3,4.04673784]
[1765517207381,3.56019372,3236.8,3236.1,3.20203257]
[1765517207601,4.24409497,3236.8,3236.1,3.20203257]
[1765517207879,0.4687,3236.7,3236.1,3.09013257]
[1765517208079,0.002,3236.8,3236.3,3.0899228]
[1765517208279,0.002,3236.8,3236.7,0.4595]
[1765517208911,0.3437,3236.8,3236.4,0.4678]
[1765517209697,0.3437,3236.8,3236.4,3.55756137]
[1765517210795,0.002,3236.8,3236.7,0.4595]
[1765517211609,0.3437,3236.8,3236.5,0.4678]
[1765517211914,0.3437,3236.8,3236.3,0.4678]
[1765517212117,0.3437,3236.8,3236.2,6.64788774]
[1765517212413,0.3437,3236.8,3236.3,0.4678]
[1765517212908,0.002,3236.8,3236.7,0.4595]
[1765517214507,0.3437,3236.8,3236.4,3.08985292]
[1765517214706,0.3437,3236.8,3236.4,3.55765292]
[1765517215011,0.3437,3236.8,3236.5,0.4678]
[1765517215219,0.002,3236.8,3236.7,0.4595]
[1765517218093,0.3437,3236.8,3236.5,3.55749525]
[1765517218293,0.3437,3236.8,3236.5,0.4678]
[1765517218493,0.3437,3236.8,3236.4,3.08982533]
[1765517218824,0.3437,3236.8,3236.4,3.55762533]
[1765517220333,0.3437,3236.8,3236.4,0.4678]
[1765517220512,0.3437,3236.8,3236.4,3.55764589]
[1765517221099,0.8111,3236.8,3236.3,3.08991665]
[1765517221634,0.8111,3236.8,3236.4,3.08985276]
[1765517222012,0.3437,3236.8,3236.4,3.55765276]
[1765517223828,0.3437,3236.8,3236.4,3.08985276]
[1765517224021,0.002,3236.8,3236.7,0.4595]
[1765517224415,0.002,3236.8,3236.7,0.9273]
[1765517226218,0.002,3236.8,3236.7,0.4595]
[1765517226533,0.8125,3236.8,3236.3,0.9568]
[1765517226703,0.8125,3236.8,3236.5,3.08969705]
[1765517226906,0.002,3236.8,3236.7,3.54906653]
[1765517227107,0.002,3236.8,3236.7,4.01686653]
[1765517228081,0.002,3236.8,3236.7,0.4595]
[1765517228202,0.3437,3236.8,3236.5,0.77169088]
[1765517228401,0.3437,3236.8,3236.4,0.4678]
[1765517228706,0.3437,3236.8,3236.3,0.489]
[1765517228915,0.8124,3236.8,3236.3,0.9568]
[1765517229238,0.3437,3236.8,3236.3,1.53727529]
[1765517229618,0.3437,3236.8,3236.5,3.08975579]
[1765517229819,0.3437,3236.8,3236.3,0.9568]
[1765517230021,0.8111,3236.8,3236.4,0.58047529]
[1765517230341,0.8111,3236.8,3236.3,4.21965004]
[1765517230342,0.3429,3236.5,3236.3,3.75185004]
[1765517230922,0.4674,3236.7,3236.3,3.75185004]
[1765517231533,0.002,3236.8,3236.6,0.4595]
[1765517232240,0.4758,3236.7,3236.4,3.08984256]
[1765517233138,0.4758,3236.7,3236.5,3.08975353]
[1765517233330,0.4758,3236.7,3236.3,0.66191753]
[1765517233331,0.4758,3236.7,3236.3,1.74159282]
[1765517233531,0.4758,3236.7,3236.4,3.0898297]
[1765517234458,0.4758,3236.7,3236.4,3.08985292]
[1765517235150,0.002,3236.8,3236.6,0.4623]
[1765517235355,0.002,3236.8,3236.4,3.08985292]
[1765517235524,0.4566,3236.8,3236.4,3.08985292]
[1765517236258,0.002,3236.8,3236.4,3.08985292]
[1765517236460,0.002,3236.8,3236.5,0.4992]
[1765517238360,0.002,3236.8,3236.4,3.08985292]
[1765517238739,0.4887,3236.8,3236.4,3.08985292]
[1765517239347,0.002,3236.8,3236.7,0.4534]
[1765517239754,0.002,3236.8,3236.7,0.9177]
[1765517240429,0.002,3236.8,3236.7,3.54296653]
[1765517240749,0.002,3236.8,3236.7,3.08956653]
[1765517241354,0.002,3236.8,3236.7,3.54296653]
[1765517241554,0.002,3236.8,3236.7,4.24331765]
[1765517244171,0.8187,3236.8,3236.4,0.78865777]
[1765517244471,0.8187,3236.8,3236.2,0.4643]
[1765517244850,0.3336,3236.8,3236.2,0.4643]
[1765517245050,0.3336,3236.8,3236.5,3.08974698]
[1765517245451,0.3336,3236.8,3236.4,3.08982076]
[1765517245867,0.3336,3236.8,3236.5,3.08974679]
[1765517246369,0.4887,3236.8,3236.4,3.08985292]
[1765517247272,0.4887,3236.8,3236.4,3.55415292]
[1765517247970,0.002,3236.8,3236.4,3.55415292]
[1765517249678,0.002,3236.8,3236.4,4.27660957]
[1765517250177,0.002,3236.8,3236.4,6.90216249]
[1765517250473,0.002,3236.8,3236.5,0.4643]
[1765517250843,0.002,3236.8,3236.7,0.4534]
[1765517252179,0.002,3236.8,3236.7,0.9177]
[1765517252875,0.002,3236.8,3236.7,0.4534]
[1765517253173,0.002,3236.8,3236.7,0.9177]
[1765517253480,0.002,3236.8,3236.7,4.00726653]
[1765517253778,0.002,3236.8,3236.7,0.9177]
[1765517253976,0.002,3236.8,3236.7,4.00726653]
[1765517254276,0.002,3236.8,3236.7,0.9177]
[1765517254447,0.002,3236.8,3236.7,4.00726653]
[1765517255949,0.002,3236.8,3236.7,0.9177]
[1765517256956,0.002,3236.8,3236.7,4.00726653]
[1765517257993,0.002,3236.8,3236.7,0.9177]
[1765517258393,0.002,3236.8,3236.7,4.00726653]
[1765517258689,0.002,3236.8,3236.7,4.71696812]
[1765517259692,0.002,3236.8,3236.7,4.25266812]
[1765517259893,0.002,3236.8,3236.7,4.71696812]
[1765517262864,0.002,3236.8,3236.7,4.25266812]
[1765517264598,0.3394,3236.8,3236.7,3.79926812]
[1765517270195,0.3394,3236.8,3236.6,3.0896523]
[1765517271496,0.002,3236.8,3236.7,0.4791]
[1765517271700,0.002,3236.8,3236.7,0.9431]
[1765517272484,0.002,3236.8,3236.7,6.67077389]
[1765517272679,0.002,3236.8,3236.7,9.76034042]
[1765517273017,0.002,3236.8,3236.7,11.1793985]
[1765517276424,0.002,3236.8,3236.7,5.45172461]
[1765517281322,0.3394,3236.8,3236.7,4.50862461]
[1765517281508,0.3394,3236.8,3236.7,3.08956653]
[1765517281893,0.3394,3236.8,3236.6,3.08964106]
[1765517282093,0.4828,3236.8,3236.7,3.08956653]
[1765517282599,0.3298,3236.8,3236.7,3.08956653]
[1765517282804,0.002,3236.8,3236.7,4.23549827]
[1765517283022,0.002,3236.8,3236.7,4.69949827]
[1765517283433,0.4762,3236.8,3236.7,3.75639827]
[1765517283593,0.4762,3236.8,3236.7,3.08956653]
[1765517283793,0.9527,3236.8,3236.7,3.08956653]
[1765517284092,0.9527,3236.8,3236.6,3.08964776]
[1765517284504,0.47,3236.7,3236.6,3.67012305]
[1765517284707,0.9464,3236.7,3236.1,1.11947351]
[1765517284910,0.4764,3236.7,3236.2,0.489]
[1765517285124,0.4808,3236.6,3236.3,3.08994839]
[1765517285426,0.4808,3236.6,3236.3,3.77603464]
[1765517285606,0.4657,3236.4,3236.3,4.35650993]
[1765517286396,0.9464,3236.4,3236.3,4.35650993]
[1765517288311,0.9464,3236.4,3236.3,5.28412072]
[1765517290679,0.9464,3236.4,3236.3,0.92761079]
[1765517290948,0.9464,3236.4,3235.8,0.83478808]
[1765517290949,0.9464,3236.4,3236.2,3.09002933]
[1765517291431,0.4808,3236.4,3236.2,3.09002933]
[1765517291636,0.4657,3236.3,3236.2,3.09002933]
[1765517291801,0.9464,3236.3,3236.2,3.09002933]
[1765517292137,0.9464,3236.3,3236.0,0.9276739]
[1765517292309,0.4808,3236.2,3236.0,0.9276739]
[1765517292636,0.4657,3236.1,3236.0,0.9276739]
[1765517293195,0.4769,3236.4,3236.1,3.67061465]
[1765517293696,0.4696,3236.2,3235.9,3.09024314]
[1765517293903,0.4769,3236.4,3235.5,0.489]
[1765517294101,0.4769,3236.3,3235.9,0.92774275]
[1765517294542,0.4696,3236.0,3235.8,3.09039578]
[1765517294711,0.4696,3236.0,3235.8,4.01813853]
[1765517295557,0.6659,3235.9,3235.8,0.92774275]
[1765517295728,7.36082298,3235.9,3234.9,0.001]
[1765517296043,1.2129823,3235.8,3234.9,3.59176732]
[1765517296411,0.4769,3235.7,3235.0,3.5906901]
[1765517297417,0.4769,3235.7,3235.0,6.6818802]
[1765517297851,0.4769,3235.7,3235.0,3.5906901]
[1765517298416,0.4769,3235.7,3235.0,3.0911901]
[1765517298417,3.56742424,3235.7,3235.0,3.0911901]
[1765517298632,1.30327546,3235.7,3235.0,3.0911901]
[1765517298843,0.4769,3235.6,3235.0,3.0911901]
[1765517299157,0.4791,3235.1,3235.0,3.0911901]
[1765517299817,0.4769,3235.4,3235.0,3.5429901]
[1765517300545,0.4769,3236.0,3235.3,0.4518]
[1765517300845,0.9519,3236.4,3235.9,0.4624]
[1765517301044,0.92779727,3236.7,3235.9,0.4624]
[1765517301216,0.4629,3236.4,3235.9,0.4624]
[1765517301415,0.4629,3236.4,3235.9,0.9383]
[1765517301831,0.4551,3236.0,3235.6,0.92779727]
[1765517302142,0.4551,3236.0,3235.7,3.09052137]
[1765517302338,0.0373,3235.8,3235.6,4.01838069]
[1765517302523,0.0373,3235.8,3235.6,4.88383667]
[1765517303938,0.4509,3235.7,3235.6,1.79325325]
[1765517304145,0.4509,3235.7,3235.6,3.09061688]
[1765517304339,0.9138,3235.7,3235.6,3.09061688]
[1765517304552,0.9138,3235.7,3235.5,3.0906987]
[1765517305024,0.0414,3235.6,3235.5,3.67117399]
[1765517305420,0.0414,3235.6,3235.1,0.489]
[1765517305676,0.1942,3235.9,3235.2,3.0909804]
[1765517305677,0.4468,3235.5,3235.2,3.0909804]
[1765517305855,0.4468,3235.5,3235.3,0.58047529]
[1765517306047,0.4468,3235.5,3235.3,3.09088838]
[1765517306224,0.0455,3235.4,3235.3,3.67136367]
[1765517307142,0.5084,3235.4,3235.3,3.67136367]
[1765517307533,0.1942,3235.9,3235.3,4.13376367]
[1765517307735,0.6571,3235.9,3235.3,4.13376367]
[1765517308134,0.4629,3235.8,3235.3,4.13376367]
[1765517309355,0.4629,3235.8,3235.2,3.56687529]
[1765517309356,0.4551,3235.4,3235.2,3.09096736]
[1765517309560,0.0373,3235.3,3235.2,3.67144265]
[1765517309861,0.0373,3235.3,3235.1,3.09106195]
[1765517310160,0.0373,3235.3,3235.1,3.67156984]
[1765517310368,0.4629,3235.6,3235.1,4.33619408]
[1765517310546,0.4629,3235.6,3235.1,3.67156984]
[1765517311268,0.4551,3235.2,3235.1,3.09109455]
[1765517316068,0.4551,3235.2,3234.9,6.1835251]
[1765517316438,0.0373,3235.0,3234.9,3.67271473]
[1765517316640,0.0373,3235.0,3234.9,0.001]
[1765517316952,0.5002,3235.0,3234.9,0.001]
[1765517318871,0.85932314,3235.0,3234.9,0.001]
[1765517319743,0.5002,3235.0,3234.9,0.001]
[1765517320955,0.0373,3235.0,3234.9,0.001]
[1765517321867,6.1972864,3235.6,3234.9,0.9393]
[1765517322047,0.489,3235.5,3235.1,0.4624]
[1765517322469,0.9519,3235.5,3235.1,0.4624]
[1765517322664,1.35615261,3235.5,3235.1,0.4624]
[1765517322859,0.4978,3235.4,3235.1,0.4624]
[1765517323174,0.489,3235.6,3235.1,0.4624]
[1765517323367,0.4978,3235.6,3235.1,3.27134975]
[1765517323573,0.9868,3235.6,3235.1,0.1803]
[1765517323947,0.4978,3235.5,3235.1,0.1803]
[1765517324265,0.4978,3235.5,3235.0,4.01914227]
[1765517324443,0.4978,3235.5,3235.0,4.51034227]
[1765517325550,0.4978,3235.5,3235.1,3.09107455]
[1765517325750,0.489,3235.6,3235.1,3.58227455]
[1765517325952,0.489,3235.6,3235.2,0.4912]
[1765517326473,0.4533,3235.3,3235.1,3.09107455]
[1765517326779,0.9868,3235.6,3235.1,3.09107455]
[1765517326946,0.9868,3235.6,3235.1,3.58227455]
[1765517328053,0.9868,3235.8,3235.1,4.52281815]
[1765517328243,0.9868,3235.8,3235.2,0.9278977]
[1765517329371,0.489,3235.8,3235.2,0.9278977]
[1765517329576,0.4978,3235.7,3235.2,0.9278977]
[1765517330477,0.4978,3235.7,3235.2,1.4190977]
[1765517331177,3.58833015,3235.7,3235.2,1.4190977]
[1765517331381,0.4978,3235.7,3235.2,1.4190977]
[1765517331579,3.58833694,3235.7,3235.2,1.93704092]
[1765517332065,3.09053694,3235.7,3235.2,0.9278977]
[1765517332270,0.4978,3235.6,3235.1,0.1803]
[1765517332459,0.4978,3235.6,3235.0,1.4168977]
[1765517332778,3.09064507,3235.6,3235.0,4.01905566]
[1765517332951,3.09064507,3235.6,3235.0,4.51025566]
[1765517333282,3.58844507,3235.6,3235.0,4.51025566]
[1765517334380,3.58844507,3235.6,3235.0,4.01905566]
[1765517334572,0.4978,3235.5,3235.0,4.01905566]
[1765517335282,0.4978,3235.5,3235.0,0.9278977]
[1765517335989,0.4978,3235.5,3235.0,4.01907843]
[1765517336864,0.4978,3235.5,3235.0,4.51027843]
[1765517337259,0.4978,3235.5,3235.0,5.09127823]
[1765517337852,3.57946176,3235.8,3235.1,0.6715]
[1765517338057,4.07726176,3235.8,3235.1,0.6715]
[1765517338279,0.4978,3235.7,3235.1,0.6715]
[1765517339059,3.58832683,3235.7,3235.1,3.76257085]
[1765517340177,0.4978,3235.6,3235.1,0.6715]
[1765517340372,0.4533,3235.2,3234.9,0.001]
[1765517340575,6.18105366,3235.7,3234.9,0.001]
[1765517340576,0.4973,3235.6,3234.9,0.001]
[1765517340775,0.4537,3235.0,3234.9,0.001]
[1765517341083,0.4969,3235.6,3234.9,0.001]
[1765517341488,0.4969,3235.6,3234.9,0.4922]
[1765517342463,0.489,3235.7,3235.5,0.4531]
[1765517342661,3.77362053,3235.9,3235.5,0.4531]
[1765517343063,0.4978,3235.8,3235.5,0.4531]
[1765517344962,0.1942,3235.9,3235.5,0.4531]
[1765517345165,3.78239113,3235.9,3235.5,0.4531]
[1765517346196,0.692,3235.9,3235.5,0.4531]
[1765517346404,3.78233755,3235.9,3235.5,0.4531]
[1765517347105,3.28453755,3235.9,3235.5,0.4531]
[1765517347409,0.4978,3235.8,3235.5,0.4531]
[1765517348017,0.4533,3235.6,3235.0,0.489]
[1765517348224,0.4533,3235.6,3235.0,0.9802]
[1765517348583,0.4533,3235.6,3235.1,3.091021]
[1765517348784,3.09043339,3235.8,3235.5,0.4531]
[1765517349385,3.09031205,3236.0,3235.5,0.4531]
[1765517349586,0.4978,3235.9,3235.5,0.4531]
[1765517351529,3.09042586,3235.8,3235.5,0.4531]
[1765517352815,3.78097903,3236.2,3235.7,0.4531]
[1765517353115,0.489,3236.1,3235.7,0.4531]
[1765517353286,0.9666,3236.1,3235.7,0.4531]
[1765517354805,0.489,3236.1,3235.7,0.4531]
[1765517355007,4.05675661,3236.1,3235.7,0.4531]
[1765517356002,0.489,3236.1,3235.7,0.4531]
[1765517356313,0.9666,3236.1,3235.7,0.4531]
[1765517357025,3.27505745,3236.5,3236.0,0.4955]
[1765517357227,4.22335745,3236.5,3236.1,0.4955]
[1765517357424,3.76405745,3236.5,3236.1,0.4955]
[1765517357626,0.4593,3236.4,3236.1,0.4955]
[1765517357926,0.4593,3236.4,3235.8,0.4869]
[1765517357927,0.4907,3236.2,3235.8,0.4869]
[1765517358328,3.08975745,3236.5,3236.1,0.4955]
[1765517358823,3.54905745,3236.5,3236.1,0.4955]
[1765517359322,3.08975745,3236.5,3236.1,0.9824]
[1765517359635,0.002,3236.8,3236.1,0.1913]
[1765517359791,3.09147789,3236.8,3236.1,3.76831663]
[1765517359995,0.002,3236.8,3236.7,0.4955]
[1765517363840,0.002,3236.8,3236.7,4.07196653]
[1765517366215,0.002,3236.8,3236.7,4.56096653]
[1765517367741,0.002,3236.8,3236.7,5.26509458]
[1765517373337,0.002,3236.8,3236.7,4.28269458]
[1765517373642,0.002,3236.8,3236.7,5.51543774]
[1765517373941,0.4927,3236.8,3236.7,0.73724316]
[1765517374118,0.83,3236.8,3236.6,0.58047529]
[1765517374315,0.4891,3236.7,3236.6,0.58047529]
[1765517374722,0.4891,3236.7,3236.6,3.67013728]
[1765517377646,0.002,3236.8,3236.6,3.67013728]
[1765517378647,0.002,3236.8,3236.7,0.4955]
[1765517379539,0.002,3236.8,3236.6,3.67013728]
[1765517379540,0.3703,3236.8,3236.6,3.67013728]
[1765517379743,0.002,3236.8,3236.7,0.9824]
[1765517380636,0.002,3236.8,3236.7,0.4955]
[1765517382642,0.002,3236.8,3236.7,3.58506653]
[1765517382844,0.002,3236.8,3236.7,4.04656653]
[1765517383645,0.002,3236.8,3236.7,3.58506653]
[1765517383818,0.002,3236.8,3236.7,4.38793471]
[1765517385553,1.0141,3236.8,3236.4,3.57776594]
[1765517385850,1.0141,3236.8,3236.2,3.09002686]
[1765517385851,0.6458,3236.8,3236.3,3.08994223]
[1765517386250,0.6458,3236.8,3236.4,0.4615]
[1765517386431,0.1945,3236.8,3236.3,3.55144223]
[1765517386631,0.4919,3236.7,3236.3,3.08994223]
[1765517386949,0.3289,3236.4,3236.3,3.08994223]
[1765517387124,0.3289,3236.4,3236.3,3.67041752]
[1765517388282,0.1945,3236.8,3236.3,4.9321394]
[1765517388283,0.6864,3236.8,3236.3,4.9321394]
[1765517388422,0.6864,3236.8,3236.3,5.3936394]
[1765517388624,0.4919,3236.7,3236.3,8.48358779]
[1765517388826,0.002,3236.8,3236.4,0.4615]
[1765517389118,0.002,3236.8,3236.6,0.4634]
[1765517389970,0.002,3236.8,3236.7,0.4634]
[1765517391653,0.002,3236.8,3236.7,0.9249]
[1765517391953,0.002,3236.8,3236.7,0.4634]
[1765517392339,0.002,3236.8,3236.7,3.55296653]
[1765517392539,0.002,3236.8,3236.7,0.4634]
[1765517394956,0.002,3236.8,3236.7,3.9082701]
[1765517395157,0.002,3236.8,3236.7,0.81870357]
[1765517395455,0.3309,3236.8,3236.7,0.35530357]
[1765517395644,0.3309,3236.8,3236.6,3.57765879]
[1765517400555,0.002,3236.8,3236.7,1.44937929]
[1765517400755,0.002,3236.8,3236.7,2.31256303]
[1765517400939,0.002,3236.8,3236.7,2.40531325]
[1765517402251,0.002,3236.8,3236.7,8.13395725]
[1765517402451,0.002,3236.8,3236.7,9.96013255]
[1765517402645,0.002,3236.8,3236.7,13.04969908]
[1765517402832,0.002,3236.8,3236.7,7.32105508]
[1765517403032,0.002,3236.8,3236.7,13.04969908]
[1765517403458,0.002,3236.8,3236.7,7.32105508]
[1765517404137,0.002,3236.8,3236.7,22.74019808]
[1765517404348,0.002,3236.8,3236.7,13.04969908]
[1765517405268,0.002,3236.8,3236.7,13.53769908]
[1765517412177,0.002,3236.8,3236.7,7.80905508]
[1765517417272,0.002,3236.8,3236.7,6.85955508]
[1765517417473,0.002,3236.8,3236.7,7.81865508]
[1765517421451,0.002,3236.8,3236.7,7.82145508]
[1765517427886,0.002,3236.8,3236.7,37.82145508]
[1765517428187,0.002,3236.8,3236.7,22.96888708]
[1765517428878,0.002,3236.8,3236.7,37.82145508]
[1765517429077,0.002,3236.8,3236.7,35.49725208]
[1765517429282,0.002,3236.8,3236.7,33.34418708]
[1765517429972,0.002,3236.8,3236.7,34.09321108]
[1765517430172,0.002,3236.8,3236.7,13.73843408]
[1765517430866,0.002,3236.8,3236.7,32.19291208]
[1765517431066,0.002,3236.8,3236.7,18.02113008]
[1765517432093,0.002,3236.8,3236.7,24.95548108]
[1765517432663,0.002,3236.8,3236.7,23.80892908]
[1765517433396,0.002,3236.8,3236.7,14.04868808]
[1765517433580,0.002,3236.8,3236.7,10.33763008]
[1765517434061,0.002,3236.8,3236.7,12.00772379]
[1765517434266,0.002,3236.8,3236.7,13.07619908]
[1765517435399,0.002,3236.8,3236.7,13.55009908]
[1765517437072,0.002,3236.8,3236.7,12.59199908]
[1765517437271,0.002,3236.8,3236.7,13.07999908]
[1765517437576,0.002,3236.8,3236.7,13.55389908]
[1765517438085,0.002,3236.8,3236.7,47.34389908]
[1765517438490,0.002,3236.8,3236.7,38.30267208]
[1765517438891,0.002,3236.8,3236.7,38.29838978]
[1765517439097,0.002,3236.8,3236.7,41.99649878]
[1765517440085,0.002,3236.8,3236.7,17.33961678]
[1765517440284,0.002,3236.8,3236.7,47.33961678]
[1765517440903,0.002,3236.8,3236.7,19.46306278]
[1765517441205,0.002,3236.8,3236.7,36.59549878]
[1765517442406,0.002,3236.8,3236.7,36.59485178]
[1765517442704,0.002,3236.8,3236.7,35.25729978]
[1765517443278,0.002,3236.8,3236.7,31.37441778]
[1765517443504,0.002,3236.8,3236.7,30.02641778]
[1765517444401,0.002,3236.8,3236.7,30.01068178]
[1765517445373,0.002,3236.8,3236.7,17.33961678]
[1765517445577,0.002,3236.8,3236.7,31.00892078]
[1765517446203,0.002,3236.8,3236.7,30.10359778]
[1765517447604,0.002,3236.8,3236.7,24.47650178]
[1765517447910,0.002,3236.8,3236.7,19.20701178]
[1765517448393,0.002,3236.8,3236.7,19.16875078]
[1765517448601,0.002,3236.8,3236.7,16.86571678]
[1765517448808,0.3595,3236.8,3236.7,5.619863]
[1765517449102,0.3595,3236.8,3236.7,4.6871917]
[1765517449307,0.3595,3236.8,3236.7,4.2816877]
[1765517449506,0.3595,3236.8,3236.7,4.6871917]
[1765517450380,0.3595,3236.8,3236.7,4.1991917]
[1765517450582,0.3595,3236.8,3236.7,4.6871917]
[1765517451508,0.002,3236.8,3236.7,6.59008739]
[1765517451711,0.002,3236.8,3236.7,6.55919173]
[1765517453008,1.0125,3236.8,3236.7,6.07439173]
[1765517453213,1.0125,3236.8,3236.7,4.6871917]
[1765517453410,0.8204,3236.8,3236.7,4.6871917]
[1765517453612,0.3599,3236.8,3236.7,4.6871917]
[1765517455022,0.8204,3236.8,3236.7,4.6871917]
[1765517455918,0.3599,3236.8,3236.7,4.6871917]
[1765517456100,0.3599,3236.8,3236.7,5.84387675]
[1765517458511,0.002,3236.8,3236.7,6.35957241]
[1765517458718,0.002,3236.8,3236.7,6.32867675]
[1765517459782,0.361,3236.8,3236.7,5.84387675]
[1765517460728,0.361,3236.8,3236.7,4.6871917]
[1765517460889,0.8161,3236.8,3236.2,3.08996666]